[Event "Late-Titled-Tuesday-Blitz-September-12-2023"]
[Site "Chess.com"]
[Date "2023.09.12"]
[Round "7"]
[White "SCIM"]
[Black "MightyGMpretender"]
[Result "0-1"]
[WhiteElo "2585"]
[BlackElo "2736"]
[TimeControl "180+1"]
[EndTime "15:14:27 PDT"]
[Termination "MightyGMpretender won on time"]

1. d4 {[%clk 0:03:00.9]} 1... Nf6 {[%clk 0:02:53.2]} 2. c4 {[%clk 0:02:55.3]}
2... e6 {[%clk 0:02:53.7]} 3. Nc3 {[%clk 0:02:54.7]} 3... d5 {[%clk 0:02:54.3]}
4. cxd5 {[%clk 0:02:51.9]} 4... exd5 {[%clk 0:02:55.2]} 5. Bg5 {[%clk
0:02:51.1]} 5... c6 {[%clk 0:02:55.7]} 6. Qc2 {[%clk 0:02:50.3]} 6... Be6 {[%clk
0:02:54.9]} 7. e3 {[%clk 0:02:49.9]} 7... Nbd7 {[%clk 0:02:55.1]} 8. Bd3 {[%clk
0:02:49.1]} 8... h6 {[%clk 0:02:53.7]} 9. Bh4 {[%clk 0:02:46.4]} 9... g5 {[%clk
0:02:54]} 10. Bg3 {[%clk 0:02:46.2]} 10... Nh5 {[%clk 0:02:54.7]} 11. Nge2
{[%clk 0:02:39.6]} 11... Nxg3 {[%clk 0:02:51.2]} 12. Nxg3 {[%clk 0:02:37.7]}
12... h5 {[%clk 0:02:51.9]} 13. Nf5 {[%clk 0:02:30.8]} 13... h4 {[%clk
0:02:49.1]} 14. h3 {[%clk 0:02:27.3]} 14... Qa5 {[%clk 0:02:45.4]} 15. O-O
{[%clk 0:02:12.6]} 15... Qd8 {[%clk 0:02:21.4]} 16. a3 {[%clk 0:02:07.7]} 16...
Rg8 {[%clk 0:02:07.8]} 17. f3 {[%clk 0:02:06]} 17... a5 {[%clk 0:01:47.4]} 18.
Rab1 {[%clk 0:02:03.6]} 18... Rg6 {[%clk 0:01:42.7]} 19. Rbe1 {[%clk 0:01:32.9]}
19... Rf6 {[%clk 0:01:38.8]} 20. e4 {[%clk 0:01:30.7]} 20... Bxf5 {[%clk
0:01:39]} 21. exf5+ {[%clk 0:01:28.7]} 21... Be7 {[%clk 0:01:37.6]} 22. Rf2
{[%clk 0:01:17.5]} 22... Kf8 {[%clk 0:01:37.6]} 23. Rfe2 {[%clk 0:01:12.5]}
23... Bd6 {[%clk 0:01:37.8]} 24. Na4 {[%clk 0:01:00.7]} 24... Rh6 {[%clk
0:01:31]} 25. Nc5 {[%clk 0:00:58.6]} 25... Rb8 {[%clk 0:01:21.2]} 26. Re8+
{[%clk 0:00:50.8]} 26... Qxe8 {[%clk 0:01:20.4]} 27. Rxe8+ {[%clk 0:00:51.3]}
27... Kxe8 {[%clk 0:01:20.9]} 28. Qe2+ {[%clk 0:00:43.5]} 28... Kd8 {[%clk
0:01:19.9]} 29. Qd2 {[%clk 0:00:41.5]} 29... Bf4 {[%clk 0:01:13.5]} 30. Qc3
{[%clk 0:00:31.6]} 30... b6 {[%clk 0:01:04.4]} 31. Na6 {[%clk 0:00:27.8]} 31...
Ra8 {[%clk 0:00:53.7]} 32. b4 {[%clk 0:00:27]} 32... b5 {[%clk 0:00:45.9]} 33.
Nc5 {[%clk 0:00:23.2]} 33... axb4 {[%clk 0:00:39]} 34. axb4 {[%clk 0:00:22]}
34... Bd6 {[%clk 0:00:29.8]} 35. Nb7+ {[%clk 0:00:18.1]} 35... Kc7 {[%clk
0:00:30.1]} 36. Nxd6 {[%clk 0:00:19]} 36... Rxd6 {[%clk 0:00:29.8]} 37. Kf2
{[%clk 0:00:16.3]} 37... Nb6 {[%clk 0:00:28.9]} 38. Qe1 {[%clk 0:00:14.3]} 38...
Kd7 {[%clk 0:00:24.4]} 39. f6 {[%clk 0:00:13]} 39... Re8 {[%clk 0:00:21.2]} 40.
Bf5+ {[%clk 0:00:12.1]} 40... Kd8 {[%clk 0:00:21.7]} 41. Qd2 {[%clk 0:00:10.2]}
41... Rxf6 {[%clk 0:00:11.6]} 42. Qxg5 {[%clk 0:00:10.2]} 42... Ke7 {[%clk
0:00:12.2]} 43. Qxh4 {[%clk 0:00:10]} 43... Nc4 {[%clk 0:00:11.4]} 44. Bd3
{[%clk 0:00:09.5]} 44... Ra8 {[%clk 0:00:11.2]} 45. Qg5 {[%clk 0:00:08]} 45...
Ra2+ {[%clk 0:00:10.6]} 46. Kg3 {[%clk 0:00:07.9]} 46... Ra3 {[%clk 0:00:10.2]}
47. Bxc4 {[%clk 0:00:07.9]} 47... bxc4 {[%clk 0:00:11.1]} 48. Qe5+ {[%clk
0:00:05.9]} 48... Re6 {[%clk 0:00:11.4]} 49. Qc7+ {[%clk 0:00:06.1]} 49... Kf6
{[%clk 0:00:11.8]} 50. Qf4+ {[%clk 0:00:05.5]} 50... Kg7 {[%clk 0:00:12.4]} 51.
h4 {[%clk 0:00:03.6]} 51... Rg6+ {[%clk 0:00:12.8]} 52. Kh2 {[%clk 0:00:03.2]}
52... Ra2 {[%clk 0:00:12.8]} 53. h5 {[%clk 0:00:03]} 53... Rgxg2+ {[%clk
0:00:11.8]} 54. Kh3 {[%clk 0:00:03.1]} 54... Rh2+ {[%clk 0:00:11.2]} 0-1

[Event "Late-Titled-Tuesday-Blitz-September-12-2023"]
[Site "Chess.com"]
[Date "2023.09.12"]
[Round "7"]
[White "NovikovaGalina"]
[Black "egnfanclub"]
[Result "0-1"]
[WhiteElo "2420"]
[BlackElo "2332"]
[TimeControl "180+1"]
[EndTime "15:14:32 PDT"]
[Termination "egnfanclub won by checkmate"]

1. e4 {[%clk 0:03:00.9]} 1... e5 {[%clk 0:02:59.6]} 2. Nf3 {[%clk 0:03:01.1]}
2... Nc6 {[%clk 0:02:59.5]} 3. Bc4 {[%clk 0:03:01.6]} 3... Nf6 {[%clk
0:02:59.4]} 4. Ng5 {[%clk 0:03:00.6]} 4... d5 {[%clk 0:02:59.2]} 5. exd5 {[%clk
0:03:01.5]} 5... Nd4 {[%clk 0:02:59.9]} 6. c3 {[%clk 0:02:58.5]} 6... b5 {[%clk
0:02:59.9]} 7. cxd4 {[%clk 0:02:45.9]} 7... bxc4 {[%clk 0:02:59.9]} 8. dxe5
{[%clk 0:02:43.7]} 8... Qxd5 {[%clk 0:02:59.2]} 9. O-O {[%clk 0:02:41.8]} 9...
Bb7 {[%clk 0:02:58.8]} 10. Nf3 {[%clk 0:02:36.1]} 10... Ng4 {[%clk 0:02:44]} 11.
Nc3 {[%clk 0:02:33.3]} 11... Qc6 {[%clk 0:02:44]} 12. Qa4 {[%clk 0:02:21.4]}
12... Qxa4 {[%clk 0:02:34.8]} 13. Nxa4 {[%clk 0:02:21.3]} 13... O-O-O {[%clk
0:02:35.3]} 14. Ng5 {[%clk 0:01:52.1]} 14... Nxe5 {[%clk 0:02:18.6]} 15. b3
{[%clk 0:01:42.1]} 15... h6 {[%clk 0:02:10.1]} 16. Nh3 {[%clk 0:01:30.2]} 16...
cxb3 {[%clk 0:01:51.1]} 17. axb3 {[%clk 0:01:31.1]} 17... Bb4 {[%clk 0:01:46]}
18. Ba3 {[%clk 0:01:28.4]} 18... Bxa3 {[%clk 0:01:42.9]} 19. Rxa3 {[%clk
0:01:29.3]} 19... Rxd2 {[%clk 0:01:42.9]} 20. Nc5 {[%clk 0:01:28.6]} 20... Rc2
{[%clk 0:01:30.3]} 21. Nxb7 {[%clk 0:01:23.4]} 21... Kxb7 {[%clk 0:01:31.2]} 22.
Rfa1 {[%clk 0:01:23.6]} 22... Nc6 {[%clk 0:01:23.8]} 23. Nf4 {[%clk 0:01:19.8]}
23... Rd8 {[%clk 0:01:21.6]} 24. g3 {[%clk 0:01:09.1]} 24... a5 {[%clk
0:01:21.4]} 25. Nh5 {[%clk 0:00:55.4]} 25... Rdd2 {[%clk 0:01:16.8]} 26. Rf1
{[%clk 0:00:51.9]} 26... g6 {[%clk 0:01:13.6]} 27. Nf6 {[%clk 0:00:50.8]} 27...
Nd4 {[%clk 0:00:57.5]} 28. Rxa5 {[%clk 0:00:45.7]} 28... Kb6 {[%clk 0:00:47.8]}
29. Ra3 {[%clk 0:00:41.9]} 29... c6 {[%clk 0:00:42.4]} 30. Nd7+ {[%clk
0:00:40.2]} 30... Kc7 {[%clk 0:00:40.5]} 31. Ne5 {[%clk 0:00:40]} 31... Rb2
{[%clk 0:00:26]} 32. Nc4 {[%clk 0:00:32.3]} 32... Rxb3 {[%clk 0:00:22.5]} 33.
Rxb3 {[%clk 0:00:25.2]} 33... Nxb3 {[%clk 0:00:23.4]} 34. Nxd2 {[%clk
0:00:25.4]} 34... Nxd2 {[%clk 0:00:23.8]} 35. Ra1 {[%clk 0:00:24.5]} 35... f5
{[%clk 0:00:19.8]} 36. Ra7+ {[%clk 0:00:22.6]} 36... Kd6 {[%clk 0:00:20.2]} 37.
Rg7 {[%clk 0:00:22.9]} 37... g5 {[%clk 0:00:20.4]} 38. Rg6+ {[%clk 0:00:23.1]}
38... Kd5 {[%clk 0:00:20.7]} 39. Rxh6 {[%clk 0:00:24]} 39... c5 {[%clk
0:00:21.1]} 40. Rh8 {[%clk 0:00:23.7]} 40... Ke4 {[%clk 0:00:19.8]} 41. h4
{[%clk 0:00:21.6]} 41... gxh4 {[%clk 0:00:19.4]} 42. gxh4 {[%clk 0:00:22.2]}
42... c4 {[%clk 0:00:20.3]} 43. h5 {[%clk 0:00:22.6]} 43... c3 {[%clk 0:00:19]}
44. Rc8 {[%clk 0:00:22.7]} 44... Kd3 {[%clk 0:00:19.1]} 45. h6 {[%clk
0:00:22.9]} 45... Nc4 {[%clk 0:00:19]} 46. h7 {[%clk 0:00:17.2]} 46... c2 {[%clk
0:00:19.3]} 47. h8=Q {[%clk 0:00:13.1]} 47... c1=Q+ {[%clk 0:00:19.6]} 48. Kh2
{[%clk 0:00:14]} 48... Qf4+ {[%clk 0:00:19.3]} 49. Kh3 {[%clk 0:00:13.7]} 49...
Qg4+ {[%clk 0:00:18.6]} 50. Kh2 {[%clk 0:00:14.3]} 50... Qf4+ {[%clk 0:00:19]}
51. Kg1 {[%clk 0:00:12.5]} 51... Qg4+ {[%clk 0:00:18.8]} 52. Kh1 {[%clk
0:00:10]} 52... Qf3+ {[%clk 0:00:18.7]} 53. Kh2 {[%clk 0:00:10.5]} 53... Qxf2+
{[%clk 0:00:19.1]} 54. Kh3 {[%clk 0:00:11.1]} 54... Qf3+ {[%clk 0:00:19.3]} 55.
Kh2 {[%clk 0:00:09.1]} 55... Qg4 {[%clk 0:00:18.4]} 56. Rd8+ {[%clk 0:00:07.3]}
56... Ke2 {[%clk 0:00:16.7]} 57. Qe8+ {[%clk 0:00:06.2]} 57... Ne3 {[%clk
0:00:17.1]} 58. Rd7 {[%clk 0:00:02.7]} 58... Qg2# {[%clk 0:00:16.7]} 0-1

[Event "Late-Titled-Tuesday-Blitz-September-12-2023"]
[Site "Chess.com"]
[Date "2023.09.12"]
[Round "7"]
[White "zeitnot2006"]
[Black "vugarrasulov"]
[Result "1-0"]
[WhiteElo "2766"]
[BlackElo "2931"]
[TimeControl "180+1"]
[EndTime "15:14:35 PDT"]
[Termination "zeitnot2006 won by checkmate"]

1. e4 {[%clk 0:03:00.9]} 1... c5 {[%clk 0:03:00.1]} 2. Nf3 {[%clk 0:03:01.1]}
2... Nc6 {[%clk 0:03:00.7]} 3. Bc4 {[%clk 0:02:59.1]} 3... e6 {[%clk 0:02:58.3]}
4. O-O {[%clk 0:02:59.3]} 4... d6 {[%clk 0:02:53.5]} 5. c3 {[%clk 0:02:58.2]}
5... Nf6 {[%clk 0:02:53.3]} 6. Re1 {[%clk 0:02:57.3]} 6... Be7 {[%clk
0:02:53.9]} 7. d4 {[%clk 0:02:57.5]} 7... cxd4 {[%clk 0:02:54.5]} 8. cxd4 {[%clk
0:02:58.4]} 8... d5 {[%clk 0:02:45.2]} 9. exd5 {[%clk 0:02:56.7]} 9... exd5
{[%clk 0:02:44.9]} 10. Bd3 {[%clk 0:02:49.6]} 10... O-O {[%clk 0:02:44]} 11. h3
{[%clk 0:02:50]} 11... Nb4 {[%clk 0:02:40]} 12. Nc3 {[%clk 0:02:37.2]} 12...
Nxd3 {[%clk 0:02:40]} 13. Qxd3 {[%clk 0:02:38.1]} 13... h6 {[%clk 0:02:37.9]}
14. Bf4 {[%clk 0:02:36.7]} 14... Be6 {[%clk 0:02:36.3]} 15. Rac1 {[%clk
0:02:34.9]} 15... Rc8 {[%clk 0:02:31.7]} 16. Qb5 {[%clk 0:02:33.1]} 16... Qb6
{[%clk 0:02:20.5]} 17. Qxb6 {[%clk 0:02:27.5]} 17... axb6 {[%clk 0:02:21.4]} 18.
Nb5 {[%clk 0:02:27.4]} 18... Ne4 {[%clk 0:02:16]} 19. a3 {[%clk 0:02:20.4]}
19... g5 {[%clk 0:02:12.2]} 20. Bh2 {[%clk 0:02:19.3]} 20... f6 {[%clk
0:01:59.7]} 21. Rc7 {[%clk 0:01:55.4]} 21... Rxc7 {[%clk 0:01:45.2]} 22. Nxc7
{[%clk 0:01:56.1]} 22... Bf7 {[%clk 0:01:44]} 23. Nd2 {[%clk 0:01:49.7]} 23...
Nxd2 {[%clk 0:01:35.1]} 24. Rxe7 {[%clk 0:01:49.4]} 24... Rc8 {[%clk 0:01:35.8]}
25. Bg3 {[%clk 0:01:31]} 25... Nb3 {[%clk 0:01:27.1]} 26. Rd7 {[%clk 0:01:24.8]}
26... Nxd4 {[%clk 0:01:26.2]} 27. Nxd5 {[%clk 0:01:22.2]} 27... Bxd5 {[%clk
0:01:15.2]} 28. Rxd5 {[%clk 0:01:23.1]} 28... Ne2+ {[%clk 0:01:15.5]} 29. Kh2
{[%clk 0:01:20.8]} 29... Rc2 {[%clk 0:01:16]} 30. Rb5 {[%clk 0:01:14.2]} 30...
Rc6 {[%clk 0:01:12.9]} 31. Rd5 {[%clk 0:01:13.9]} 31... Rc2 {[%clk 0:00:39.9]}
32. Rb5 {[%clk 0:01:11.6]} 32... Kf7 {[%clk 0:00:24.9]} 33. Rxb6 {[%clk
0:01:08.2]} 33... h5 {[%clk 0:00:25.6]} 34. Rxb7+ {[%clk 0:01:06.5]} 34... Kg6
{[%clk 0:00:26]} 35. h4 {[%clk 0:00:56.2]} 35... Rc4 {[%clk 0:00:23.2]} 36. hxg5
{[%clk 0:00:52.7]} 36... fxg5 {[%clk 0:00:24.1]} 37. Re7 {[%clk 0:00:40.4]}
37... Rc2 {[%clk 0:00:20.7]} 38. b4 {[%clk 0:00:39.6]} 38... h4 {[%clk
0:00:20.7]} 39. Bc7 {[%clk 0:00:36.2]} 39... Nc1 {[%clk 0:00:20.8]} 40. b5
{[%clk 0:00:33.5]} 40... Rxf2 {[%clk 0:00:20.8]} 41. b6 {[%clk 0:00:32.8]} 41...
Rb2 {[%clk 0:00:21.5]} 42. Re4 {[%clk 0:00:16.9]} 42... Nd3 {[%clk 0:00:21.5]}
43. Rd4 {[%clk 0:00:16.5]} 43... Ne1 {[%clk 0:00:20.9]} 44. Rb4 {[%clk
0:00:14.6]} 44... Rxg2+ {[%clk 0:00:15]} 45. Kh1 {[%clk 0:00:14.7]} 45... h3
{[%clk 0:00:15.6]} 46. Rb3 {[%clk 0:00:07.1]} 46... Rf2 {[%clk 0:00:10.3]} 47.
b7 {[%clk 0:00:06.4]} 47... g4 {[%clk 0:00:04.9]} 48. b8=Q {[%clk 0:00:06.3]}
48... Rf1+ {[%clk 0:00:05.4]} 49. Kh2 {[%clk 0:00:05.8]} 49... Rf2+ {[%clk
0:00:05.2]} 50. Kg3 {[%clk 0:00:04.8]} 50... Rg2+ {[%clk 0:00:05.8]} 51. Kf4
{[%clk 0:00:05]} 51... h2 {[%clk 0:00:06.2]} 52. Qg8+ {[%clk 0:00:04.6]} 52...
Kf6 {[%clk 0:00:06.5]} 53. Rb6+ {[%clk 0:00:04.9]} 53... Ke7 {[%clk 0:00:07]}
54. Qe6+ {[%clk 0:00:04.8]} 54... Kf8 {[%clk 0:00:07]} 55. Bd6+ {[%clk
0:00:05.1]} 55... Kg7 {[%clk 0:00:07.4]} 56. Rb7+ {[%clk 0:00:05.7]} 56... Kh8
{[%clk 0:00:07]} 57. Qe8# {[%clk 0:00:06]} 1-0

[Event "Late-Titled-Tuesday-Blitz-September-12-2023"]
[Site "Chess.com"]
[Date "2023.09.12"]
[Round "7"]
[White "ManuMunoz01"]
[Black "PNEPaul"]
[Result "1/2-1/2"]
[WhiteElo "2243"]
[BlackElo "1912"]
[TimeControl "180+1"]
[EndTime "15:14:39 PDT"]
[Termination "Game drawn - insufficient material"]

1. b3 {[%clk 0:02:58.8]} 1... Nf6 {[%clk 0:02:56.8]} 2. Bb2 {[%clk 0:02:58.2]}
2... g6 {[%clk 0:02:56.5]} 3. d3 {[%clk 0:02:57.7]} 3... Bg7 {[%clk 0:02:56.6]}
4. Nd2 {[%clk 0:02:57.3]} 4... O-O {[%clk 0:02:56.6]} 5. Rb1 {[%clk 0:02:56.7]}
5... Nc6 {[%clk 0:02:56.5]} 6. g3 {[%clk 0:02:56.4]} 6... d5 {[%clk 0:02:56.4]}
7. Bg2 {[%clk 0:02:54.4]} 7... e5 {[%clk 0:02:56.2]} 8. e3 {[%clk 0:02:53.4]}
8... Bd7 {[%clk 0:02:50.9]} 9. Ne2 {[%clk 0:02:50]} 9... Qc8 {[%clk 0:02:50.3]}
10. O-O {[%clk 0:02:40.9]} 10... Bh3 {[%clk 0:02:49.9]} 11. c4 {[%clk
0:02:33.9]} 11... Bxg2 {[%clk 0:02:48.7]} 12. Kxg2 {[%clk 0:02:34.8]} 12... Qd8
{[%clk 0:02:33.6]} 13. Nf3 {[%clk 0:02:24.3]} 13... Re8 {[%clk 0:02:30]} 14.
cxd5 {[%clk 0:02:10.2]} 14... Qxd5 {[%clk 0:02:23.1]} 15. e4 {[%clk 0:02:02.6]}
15... Qd7 {[%clk 0:02:22]} 16. Qd2 {[%clk 0:01:50.5]} 16... Rad8 {[%clk
0:02:21.2]} 17. Rfd1 {[%clk 0:01:50.4]} 17... h6 {[%clk 0:02:18.3]} 18. a3
{[%clk 0:01:49.6]} 18... Qe6 {[%clk 0:02:13.6]} 19. Qc2 {[%clk 0:01:47.8]} 19...
Nh5 {[%clk 0:01:53.4]} 20. h3 {[%clk 0:01:41.7]} 20... f5 {[%clk 0:01:52.5]} 21.
Qc4 {[%clk 0:01:36.5]} 21... fxe4 {[%clk 0:01:29.5]} 22. dxe4 {[%clk 0:01:33.6]}
22... Qxc4 {[%clk 0:01:26.7]} 23. bxc4 {[%clk 0:01:34.5]} 23... Rxd1 {[%clk
0:01:22.8]} 24. Rxd1 {[%clk 0:01:34.2]} 24... Nf6 {[%clk 0:01:21.3]} 25. Nc3
{[%clk 0:01:32.6]} 25... Nd4 {[%clk 0:01:18.4]} 26. Nd5 {[%clk 0:01:18.1]} 26...
c6 {[%clk 0:01:03]} 27. Nxf6+ {[%clk 0:01:17.3]} 27... Bxf6 {[%clk 0:01:02.3]}
28. Bxd4 {[%clk 0:01:01.7]} 28... exd4 {[%clk 0:00:59.6]} 29. e5 {[%clk
0:01:01.7]} 29... Bxe5 {[%clk 0:00:56.5]} 30. Re1 {[%clk 0:00:36.5]} 30... d3
{[%clk 0:00:45.4]} 31. Rd1 {[%clk 0:00:27]} 31... Kf7 {[%clk 0:00:39.4]} 32.
Rxd3 {[%clk 0:00:26.5]} 32... Bf6 {[%clk 0:00:38.4]} 33. Rd7+ {[%clk 0:00:19.9]}
33... Re7 {[%clk 0:00:38.3]} 34. Rd3 {[%clk 0:00:19]} 34... Re8 {[%clk
0:00:31.5]} 35. Nd2 {[%clk 0:00:17.6]} 35... Re7 {[%clk 0:00:26.2]} 36. Kf3
{[%clk 0:00:17.4]} 36... Ke6 {[%clk 0:00:21.9]} 37. Re3+ {[%clk 0:00:16.7]}
37... Kd7 {[%clk 0:00:20.6]} 38. Rxe7+ {[%clk 0:00:12.3]} 38... Bxe7 {[%clk
0:00:19.1]} 39. a4 {[%clk 0:00:12.5]} 39... Bb4 {[%clk 0:00:18.2]} 40. Nb3
{[%clk 0:00:10.5]} 40... a6 {[%clk 0:00:16.8]} 41. Ke4 {[%clk 0:00:10.5]} 41...
b5 {[%clk 0:00:16.7]} 42. cxb5 {[%clk 0:00:10.2]} 42... cxb5 {[%clk 0:00:16.8]}
43. axb5 {[%clk 0:00:10.5]} 43... axb5 {[%clk 0:00:16.7]} 44. Nd4 {[%clk
0:00:10.6]} 44... Be1 {[%clk 0:00:14.3]} 45. Nxb5 {[%clk 0:00:09.4]} 45... Bxf2
{[%clk 0:00:13.5]} 46. g4 {[%clk 0:00:09.5]} 46... h5 {[%clk 0:00:13.3]} 47.
gxh5 {[%clk 0:00:08.6]} 47... gxh5 {[%clk 0:00:12.9]} 48. Kf5 {[%clk 0:00:09.5]}
48... h4 {[%clk 0:00:12.7]} 49. Nc3 {[%clk 0:00:08.8]} 49... Ke7 {[%clk
0:00:12.5]} 50. Ne4 {[%clk 0:00:08.3]} 50... Be1 {[%clk 0:00:12.4]} 51. Ng5
{[%clk 0:00:08.4]} 51... Kf8 {[%clk 0:00:11.5]} 52. Nf3 {[%clk 0:00:08.2]} 52...
Bg3 {[%clk 0:00:11.4]} 53. Ng5 {[%clk 0:00:06.3]} 53... Kg7 {[%clk 0:00:10.8]}
54. Nf3 {[%clk 0:00:06.2]} 54... Bf2 {[%clk 0:00:09.7]} 55. Kg4 {[%clk
0:00:07.1]} 55... Bg3 {[%clk 0:00:09.2]} 56. Nxh4 {[%clk 0:00:07.3]} 56... Bxh4
{[%clk 0:00:09.4]} 57. Kxh4 {[%clk 0:00:08.2]} 57... Kh8 {[%clk 0:00:09.5]} 58.
Kg5 {[%clk 0:00:08.7]} 58... Kh7 {[%clk 0:00:09.7]} 59. h4 {[%clk 0:00:08.9]}
59... Kh8 {[%clk 0:00:10.1]} 60. h5 {[%clk 0:00:09.5]} 60... Kh7 {[%clk
0:00:10.4]} 61. h6 {[%clk 0:00:10.4]} 61... Kh8 {[%clk 0:00:10.8]} 62. h7 {[%clk
0:00:11.3]} 62... Kxh7 {[%clk 0:00:10.2]} 1/2-1/2

[Event "Late-Titled-Tuesday-Blitz-September-12-2023"]
[Site "Chess.com"]
[Date "2023.09.12"]
[Round "7"]
[White "TanitoluwaAps116"]
[Black "newyorkmouse"]
[Result "1-0"]
[WhiteElo "2699"]
[BlackElo "2464"]
[TimeControl "180+1"]
[EndTime "15:14:45 PDT"]
[Termination "TanitoluwaAps116 won by checkmate"]

1. e4 {[%clk 0:03:00.1]} 1... g6 {[%clk 0:03:00.9]} 2. d4 {[%clk 0:02:59.7]}
2... Bg7 {[%clk 0:03:01.2]} 3. Nc3 {[%clk 0:03:00.2]} 3... d6 {[%clk 0:03:01.4]}
4. Be3 {[%clk 0:02:57.1]} 4... f5 {[%clk 0:02:56.4]} 5. exf5 {[%clk 0:02:43.5]}
5... Bxf5 {[%clk 0:02:54.5]} 6. g4 {[%clk 0:02:40.9]} 6... Bd7 {[%clk
0:02:48.5]} 7. Bg2 {[%clk 0:02:15]} 7... Nc6 {[%clk 0:02:40.5]} 8. h3 {[%clk
0:01:57.3]} 8... e5 {[%clk 0:02:22.2]} 9. Nf3 {[%clk 0:01:48.3]} 9... exd4
{[%clk 0:01:52.5]} 10. Nxd4 {[%clk 0:01:49.2]} 10... Nf6 {[%clk 0:01:48.9]} 11.
Qd2 {[%clk 0:01:31.6]} 11... O-O {[%clk 0:01:42.3]} 12. O-O-O {[%clk 0:01:29.6]}
12... Ne5 {[%clk 0:01:24.7]} 13. Qe2 {[%clk 0:01:16.5]} 13... Qe7 {[%clk
0:01:03.5]} 14. g5 {[%clk 0:01:11]} 14... Nh5 {[%clk 0:00:59.6]} 15. Nd5 {[%clk
0:01:08]} 15... Qd8 {[%clk 0:00:50.3]} 16. Rhe1 {[%clk 0:00:59.4]} 16... c6
{[%clk 0:00:45.9]} 17. f4 {[%clk 0:00:55.7]} 17... cxd5 {[%clk 0:00:28.3]} 18.
fxe5 {[%clk 0:00:55.5]} 18... dxe5 {[%clk 0:00:26.3]} 19. Bxd5+ {[%clk
0:00:55.5]} 19... Kh8 {[%clk 0:00:27.1]} 20. Nb3 {[%clk 0:00:38.3]} 20... Qc8
{[%clk 0:00:21.8]} 21. Nc5 {[%clk 0:00:35.6]} 21... Nf4 {[%clk 0:00:20.6]} 22.
Bxf4 {[%clk 0:00:33.3]} 22... exf4 {[%clk 0:00:15.8]} 23. Qf2 {[%clk 0:00:21.2]}
23... Bf5 {[%clk 0:00:13.7]} 24. c3 {[%clk 0:00:18.8]} 24... b6 {[%clk
0:00:07.2]} 25. Bxa8 {[%clk 0:00:10.5]} 25... Qxa8 {[%clk 0:00:08.1]} 26. Ne6
{[%clk 0:00:10.8]} 26... Bxe6 {[%clk 0:00:04]} 27. Rxe6 {[%clk 0:00:11.7]} 27...
Qc8 {[%clk 0:00:03.7]} 28. Rde1 {[%clk 0:00:09.6]} 28... a5 {[%clk 0:00:01.8]}
29. Qf3 {[%clk 0:00:07.4]} 29... a4 {[%clk 0:00:02.3]} 30. a3 {[%clk 0:00:07.4]}
30... Qd8 {[%clk 0:00:01.7]} 31. Kc2 {[%clk 0:00:06.2]} 31... Qxg5 {[%clk
0:00:02.2]} 32. Rxb6 {[%clk 0:00:04.8]} 32... Qf5+ {[%clk 0:00:02.7]} 33. Re4
{[%clk 0:00:05]} 33... Re8 {[%clk 0:00:02.7]} 34. Rb4 {[%clk 0:00:05.4]} 34...
Bf8 {[%clk 0:00:02.8]} 35. Rd4 {[%clk 0:00:04.6]} 35... Rc8 {[%clk 0:00:03]} 36.
Qxf4 {[%clk 0:00:04.7]} 36... Qc5 {[%clk 0:00:02.8]} 37. Qf6+ {[%clk 0:00:04.8]}
37... Bg7 {[%clk 0:00:03.5]} 38. Rd8+ {[%clk 0:00:03.3]} 38... Rxd8 {[%clk
0:00:04]} 39. Qxd8+ {[%clk 0:00:04]} 39... Bf8 {[%clk 0:00:04.5]} 40. Qf6+
{[%clk 0:00:04.7]} 40... Kg8 {[%clk 0:00:04.8]} 41. Qe6+ {[%clk 0:00:04.8]}
41... Kg7 {[%clk 0:00:04.2]} 42. Qe5+ {[%clk 0:00:04.2]} 42... Qxe5 {[%clk
0:00:04.9]} 43. Rxe5 {[%clk 0:00:05.1]} 43... Kf6 {[%clk 0:00:04.4]} 44. Re4
{[%clk 0:00:05.6]} 44... Bd6 {[%clk 0:00:04.4]} 45. Rxa4 {[%clk 0:00:05.9]}
45... g5 {[%clk 0:00:05.1]} 46. Re4 {[%clk 0:00:05.5]} 46... h5 {[%clk
0:00:05.3]} 47. Kd3 {[%clk 0:00:06.4]} 47... Kf5 {[%clk 0:00:05.4]} 48. a4
{[%clk 0:00:06.2]} 48... Bf4 {[%clk 0:00:06.1]} 49. a5 {[%clk 0:00:06.1]} 49...
g4 {[%clk 0:00:06.7]} 50. hxg4+ {[%clk 0:00:06.8]} 50... hxg4 {[%clk 0:00:07.4]}
51. Re8 {[%clk 0:00:07.3]} 51... g3 {[%clk 0:00:07.4]} 52. Rf8+ {[%clk
0:00:07.5]} 52... Kg4 {[%clk 0:00:08]} 53. Rg8+ {[%clk 0:00:08.4]} 53... Bg5
{[%clk 0:00:08.6]} 54. Ke2 {[%clk 0:00:08]} 54... Kf4 {[%clk 0:00:05.2]} 55.
Rxg5 {[%clk 0:00:05.6]} 55... Kxg5 {[%clk 0:00:06.1]} 56. Kf3 {[%clk 0:00:05.8]}
56... Kh4 {[%clk 0:00:06.7]} 57. Kg2 {[%clk 0:00:05.5]} 57... Kg4 {[%clk
0:00:07.4]} 58. a6 {[%clk 0:00:05.7]} 58... Kf4 {[%clk 0:00:08.2]} 59. a7 {[%clk
0:00:06.6]} 59... Ke3 {[%clk 0:00:08.6]} 60. a8=Q {[%clk 0:00:07.5]} 60... Kd2
{[%clk 0:00:09.4]} 61. Qf3 {[%clk 0:00:07.9]} 61... Kc1 {[%clk 0:00:10.3]} 62.
c4 {[%clk 0:00:08.2]} 62... Kc2 {[%clk 0:00:10.6]} 63. c5 {[%clk 0:00:09.1]}
63... Kb1 {[%clk 0:00:11.4]} 64. c6 {[%clk 0:00:10]} 64... Ka2 {[%clk
0:00:11.4]} 65. c7 {[%clk 0:00:10.9]} 65... Ka1 {[%clk 0:00:12.3]} 66. b4 {[%clk
0:00:11.8]} 66... Kb1 {[%clk 0:00:13.2]} 67. b5 {[%clk 0:00:12.7]} 67... Kb2
{[%clk 0:00:13.8]} 68. b6 {[%clk 0:00:13.6]} 68... Kc2 {[%clk 0:00:13.8]} 69. b7
{[%clk 0:00:14.5]} 69... Kc1 {[%clk 0:00:14.4]} 70. c8=R+ {[%clk 0:00:14.1]}
70... Kd2 {[%clk 0:00:15.3]} 71. Rc4 {[%clk 0:00:12.2]} 71... Ke1 {[%clk
0:00:16.2]} 72. Rc3 {[%clk 0:00:07.7]} 72... Kd2 {[%clk 0:00:15.9]} 73. Qe3+
{[%clk 0:00:08.6]} 73... Kd1 {[%clk 0:00:15.6]} 74. Rc1# {[%clk 0:00:09.5]} 1-0